[Event "FIDE Women GP Cyprus 2025"]
[Site "Nicosia"]
[Date "2025.03.19"]
[Round "5.1"]
[White "Divya Deshmukh"]
[Black "Dzagnidze, Nana"]
[Result "1/2-1/2"]
[Annotator "TA"]
[ECO "E32"]
[WhiteElo "2470"]
[BlackElo "2513"]
[PlyCount "81"]
[EventDate "2025.03.10"]
[EventType "tourn"]
[EventCountry "CYP"]
[SourceTitle "playchess.com"]
[Source "ChessBase"]
[SourceQuality "1"]
[TimeControl "40/5400+30:1800+30"]

{[%evp 13,81,0,0,0,0,0,0,0,0,0,0,0,9,10,4,5,17,0,0,0,17,16,9,18,2,14,17,21,21,18,22,11,9,13,8,9,20,12,14,17,16,8,10,1,47,43,56,44,50,42,43,12,28,33,41,33,34,34,45,38,38,22,25,25,25,0,0,0,38,0]} 1. d4 {[%emt 0:00:01]} Nf6 {[%emt 0:00:08]} 2. c4 {[%emt 0:00:03]} e6 {[%emt 0:00:06]} 3. Nc3 {[%emt 0:00:02]} Bb4 {[%emt 0:00:13]} 4. Qc2 {[%emt 0:00:04]} O-O {[%emt 0:00:15]} 5. e4 {[%emt 0:00:03][%cal Be2e4,Be4e5][%mdl 32]} d5 {[%emt 0:00:32]} 6. e5 {[%emt 0:00:14]} Ne4 {[%emt 0:00:33]} 7. Bd3 {[%emt 0:00:09]} c5 {[%emt 0:00:07]} 8. Nf3 {[%emt 0:00:14] E32: Nimzo-Indian: Classical (4 Qc2): 4...0-0.} cxd4 {[%emt 0:00:11]} 9. Nxd4 {[%emt 0:00:04]} Nd7 {[%emt 0:00:07]} 10. Bf4 {[%emt 0:00:12] The position is equal.} Qh4 $1 {[%emt 0:00:55] 10...Qh4 is better than 10...Ndc5.} 11. g3 {[%emt 0:00:17]} Qh5 {[%emt 0:00:07]} 12. O-O {[%emt 0:01:35]} g5 $132 {[%emt 0:04:10][%mdl 2048] Black is not holding back} (12... Nxe5 13. Be2 Qg6 (13... Ng4 14. Bxg4 Qxg4 15. f3 $16) 14. Bxe5 $18) 13. cxd5 {[%emt 0:00:54]} Bxc3 {[%emt 0:00:06]} 14. bxc3 {[%emt 0:06:02]} exd5 {[%emt 0:00:11]} 15. Be3 {[%emt 0:08:49] and f3 would now be decisive} (15. Bxe4 $5 dxe4 16. Bd2 $15) 15... Nxe5 {[%emt 0:00:27] Excellent horsemanship.} 16. f3 {[%emt 0:00:04] Prevents Ng4.} Nxd3 {[%emt 0:21:32]} 17. Qxd3 {[%emt 0:05:43]} Nd6 {[%emt 0:00:17]} 18. g4 {[%emt 0:08:24]} Qg6 {[%emt 0:06:21]} 19. Qxg6+ {[%emt 0:01:24]} fxg6 {[%emt 0:00:07]} 20. Bxg5 {[%emt 0:00:08]} Rf7 {[%emt 0:00:37] Prevents Be7. Black is weak on the dark squares} 21. Rae1 {[%emt 0:27:20]} Bd7 {[%emt 0:02:37]} 22. Re5 {[%emt 0:00:07]} Nb5 {[%emt 0:00:20]} 23. Nxb5 {[%emt 0:00:20]} Bxb5 {[%emt 0:00:06]} 24. Rf2 {[%emt 0:00:01]} Re8 $146 {[%emt 0:11:45]} (24... Bc6 25. Be3 d4 26. Bxd4 Bxf3 27. h3 a6 28. a3 Bc6 29. Bc5 Rxf2 30. Kxf2 Re8 31. Rxe8+ Bxe8 {½-½ So,W (2760)-Aronian,L (2745) Warsaw Superbet Blitz 2023 (14)}) 25. Rxd5 {[%emt 0:07:25]} Bc6 {[%emt 0:02:17]} 26. Rd3 {[%emt 0:00:25]} h5 {[%emt 0:06:36] [#] ...Re1+ would now be deadly.} 27. h3 {[%emt 0:02:48]} Re5 {[%emt 0:07:41]} 28. Be3 {[%emt 0:06:52]} a6 {[%emt 0:03:54]} (28... Bxf3 $11 {deserves consideration.} 29. Rd8+ Kh7 30. Rxf3 Rxf3) 29. Kg2 $14 {[%emt 0:08:33]} Rfe7 {[%emt 0:13:36]} 30. Bf4 {[%emt 0:02:02]} Re2 {[%emt 0:01:04]} 31. Rd8+ {[%emt 0:01:30]} Kf7 {[%emt 0:00:45]} 32. Rd2 {[%emt 0:02:12]} Bb5 {[%emt 0:01:57]} 33. Rfxe2 {[%emt 0:05:13]} Rxe2+ {[%emt 0:00:06]} 34. Rxe2 {[%emt 0:00:03]} Bxe2 $11 {[%emt 0:00:05][%mdl 4096] Endgame KB-KB. White is a pawn up.} 35. Kf2 {[%emt 0:00:05]} Bd1 {[%emt 0:00:28]} 36. Ke3 {[%emt 0:00:49]} Ke6 {[%emt 0:00:10]} 37. Ke4 {[%emt 0:01:16]} Bc2+ {[%emt 0:00:04]} 38. Kd4 {[%emt 0:00:02]} Bd1 {[%emt 0:00:05]} 39. Ke4 {[%emt 0:00:04]} Bc2+ {[%emt 0:00:05]} 40. Kd4 {[%emt 0:00:03]} Bd1 {[%emt 0:00:06]} 41. Ke4 {[%emt 0:30:32] Weighted Error Value: White=0.05 (flawless) /Black=0.04 (flawless)   Mistake:       	---       	Black=1      Inaccurate:     	White=2     	---        OK:         	White=15    	Black=20     Best:        	---       	Black=1} 1/2-1/2

[Event "FIDE Women GP Cyprus 2025"]
[Site "Nicosia"]
[Date "2025.03.19"]
[Round "5.2"]
[White "Tsolakidou, Stavroula"]
[Black "Muzychuk, Anna"]
[Result "0-1"]
[Annotator "TA"]
[ECO "D40"]
[WhiteElo "2445"]
[BlackElo "2516"]
[PlyCount "66"]
[EventDate "2025.03.10"]
[EventType "tourn"]
[EventCountry "CYP"]
[SourceTitle "playchess.com"]
[Source "ChessBase"]
[SourceQuality "1"]
[TimeControl "40/5400+30:1800+30"]

{[%evp 12,66,24,12,12,14,5,0,0,0,0,0,28,40,60,8,15,23,19,6,56,0,0,-23,-33,-27,-48,-52,-37,-53,-43,-35,-14,-26,-18,-13,-20,-68,-63,-101,-94,-101,-98,-101,-76,-78,-53,-70,-45,-83,-72,-64,-70,-112,-102,-997,-929]} 1. d4 {[%emt 0:00:04]} Nf6 {[%emt 0:00:08]} 2. c4 {[%emt 0:00:09]} e6 {[%emt 0:00:08]} 3. Nf3 {[%emt 0:00:25]} d5 {[%emt 0:00:07]} 4. Nc3 {[%emt 0:00:07]} c5 {[%emt 0:00:17]} 5. e3 {[%emt 0:00:26]} Nc6 {[%emt 0:00:42]} 6. a3 {[%emt 0:00:27]} dxc4 {[%emt 0:00:29]} 7. Bxc4 {[%emt 0:00:08]} a6 {[%emt 0:00:20] D40: Queen's Gambit Declined: Semi-Tarrasch with 5 e3.} 8. Ba2 {[%emt 0:04:43] 8.Bd3 is setting a new trend.} b5 {[%emt 0:13:56]} 9. Qc2 {[%emt 0:00:49]} Bb7 $1 $146 {[%emt 0:09:45][%mdl 8] The position is equal. A relevant novelty.} (9... cxd4 10. exd4 Bb7 11. d5 exd5 12. Bg5 Be7 13. Rd1 d4 14. O-O O-O 15. Rfe1 b4 {1-0 Firouzja,A (2759)-Ding,L (2780) Tata Steel-A 86th 2024 (8)}) 10. dxc5 {[%emt 0:07:06]} Bxc5 {[%emt 0:00:18]} 11. Nxb5 {[%emt 0:02:52]} Bb6 {[%emt 0:00:30]} 12. Nc3 {[%emt 0:07:13]} Rc8 {[%emt 0:02:19]} 13. Qa4 {[%emt 0:07:43]} (13. O-O $14) 13... O-O {[%emt 0:03:19] Black sacrificed a pawn} 14. O-O {[%emt 0:00:13]} Qc7 {[%emt 0:05:26]} 15. Qh4 {[%emt 0:17:40]} Rfd8 {[%emt 0:06:55]} ({Black should play} 15... Ne7 $11) 16. Na4 {[%emt 0:07:32]} (16. e4 $14) 16... Ba7 $11 {[%emt 0:04:52]} 17. b4 {[%emt 0:01:28] Threatens to win with Bb2.} Ne7 {[%emt 0:08:10]} 18. Bb2 {[%emt 0:03:27]} Nf5 {[%emt 0:06:29]} 19. Qh3 {[%emt 0:03:37]} Ne4 {[%emt 0:01:00][%cal Oe4f2] Prevents Ng5.} 20. Nc5 $1 {[%emt 0:06:59]} Bxc5 {[%emt 0:02:59]} 21. bxc5 {[%emt 0:00:07]} Qxc5 {[%emt 0:01:32][%cal Of5e3] White must now prevent ...Nxe3!.} 22. Nd4 $1 {[%emt 0:06:42]} Nxd4 {[%emt 0:04:00]} 23. Bxd4 {[%emt 0:00:05] This pair of bishops is nice.} Qg5 {[%emt 0:04:39][%cal Od8d4]} 24. Rad1 {[%emt 0:13:56]} (24. Rab1 $11 {feels stronger.} Bd5 25. Bxd5 Rxd5 26. Rfd1) 24... h6 $15 {[%emt 0:19:16]} 25. f4 {[%emt 0:04:32] [#]} Qe7 {[%emt 0:00:21]} 26. Bb1 {[%emt 0:02:29]} Nc3 {[%emt 0:01:32]} 27. Rd2 {[%emt 0:01:15]} Nxb1 {[%emt 0:01:51]} 28. Rxb1 {[%emt 0:00:05]} Be4 {[%emt 0:00:10] Black has a strong bishop and is better} (28... Qxa3 {is interesting.} 29. Qg3 Rc1+ 30. Rd1 Rxd1+ 31. Rxd1 Qf8) 29. Rbd1 {[%emt 0:01:38] White is weak on the light squares} Rd5 {[%emt 0:00:49]} 30. Qg3 {[%emt 0:00:16][%csl Gd4][%cal Rg3g7]} f6 {[%emt 0:00:17] Active counter play!} ({Stronger than} 30... Qxa3 31. Qxg7#) 31. h3 {[%emt 0:00:31]} Kh7 {[%emt 0:00:35]} ({But not} 31... Qxa3 $6 32. Bxf6 Qf8 33. Bd4 $14) 32. Bb2 {[%emt 0:00:27]} Rc2 {[%emt 0:00:52]} 33. Qf2 {[%emt 0:01:12][%mdl 8192] [#]} (33. Qe1 $17) 33... Rxb2 $1 {[%emt 0:00:36][%mdl 512] Weighted Error Value: White=0.37/Black=0.06 (flawless)   Loses game:     	White=1     	---        Mistake:       	White=3     	Black=1      Inaccurate:     	White=3     	Black=1      OK:         	White=7     	Black=14     Best:        	White=1     	Black=1      Strong:       	White=2     	---        Brilliant:      	---       	Black=1} 0-1

[Event "FIDE Women GP Cyprus 2025"]
[Site "Nicosia"]
[Date "2025.03.19"]
[Round "5.3"]
[White "Zhu, Jiner"]
[Black "Goryachkina, Aleksandra"]
[Result "1/2-1/2"]
[Annotator "TA"]
[ECO "C54"]
[WhiteElo "2514"]
[BlackElo "2548"]
[PlyCount "53"]
[EventDate "2025.03.10"]
[EventType "tourn"]
[EventCountry "CYP"]
[SourceTitle "playchess.com"]
[Source "ChessBase"]
[SourceQuality "1"]
[TimeControl "40/5400+30:1800+30"]

{[%evp 12,53,11,15,29,24,36,29,22,20,23,27,18,18,20,26,10,9,0,-17,0,-12,-23,-60,-69,-77,0,0,0,0,-1,-107,-80,-99,0,0,0,0,0,0,0,0,0,0]} 1. e4 {[%emt 0:00:03]} e5 {[%emt 0:00:14]} 2. Nf3 {[%emt 0:00:08]} Nc6 {[%emt 0:00:11]} 3. Bc4 {[%emt 0:00:10]} Bc5 {[%emt 0:00:30]} 4. c3 {[%emt 0:00:07]} Nf6 {[%emt 0:00:24]} 5. d3 {[%emt 0:00:17]} d6 {[%emt 0:00:48]} 6. Bg5 {[%emt 0:00:13][%cal Bc1g5,Bg5h4,Bh4g3][%mdl 32]} h6 {[%emt 0:01:21]} 7. Bh4 {[%emt 0:00:06]} a5 {[%emt 0:01:09] C54: Giuoco Piano: 4 c3 Nf6, main lines with 5 d4 and 5 d3.} 8. Nbd2 {[%emt 0:00:09]} Ba7 {[%emt 0:00:49]} 9. a4 {[%emt 0:00:13]} Qe7 {[%emt 0:03:30] White has an edge.} 10. O-O {[%emt 0:00:39]} g5 {[%emt 0:01:21][%cal Bg7g5,Bg5g4][%mdl 32]} 11. Bg3 {[%emt 0:00:07]} Nd7 {[%emt 0:01:35]} 12. Bb5 {[%emt 0:00:42]} h5 $1 {[%emt 0:04:18] [#]} 13. h4 {[%emt 0:00:46]} g4 {[%emt 0:01:00]} 14. Ne1 {[%emt 0:00:32]} Nf8 {[%emt 0:04:01]} 15. Nc4 $146 {[%emt 0:00:21]} (15. d4 Bd7 16. Nc2 exd4 17. Bxc6 bxc6 18. Nxd4 Ng6 19. f4 gxf3 20. N2xf3 Ne5 21. Kh1 {0-1 Zemlyanskii,I (2495)-Robson,R (2645) Wch Rapid New York 2024 (3)}) 15... Ng6 {[%emt 0:05:00]} 16. d4 {[%emt 0:00:46]} O-O {[%emt 0:05:36]} 17. dxe5 {[%emt 0:04:04]} Ncxe5 {[%emt 0:09:00]} 18. Qd2 {[%emt 0:20:40]} Nxh4 {[%emt 0:08:44] Black attacks} (18... Kg7 $17 {Strongly threatening ...c6.} 19. Ne3 (19. Nxa5 f5 $17) 19... c6) 19. Nxe5 {[%emt 0:05:41]} dxe5 {[%emt 0:00:13]} 20. Qh6 $36 {[%emt 0:00:04][%mdl 2048] White is pushing.} Ng6 {[%emt 0:02:22] Against Bc4} 21. Nd3 {[%emt 0:01:55]} (21. Rd1 $1 $11 {remains equal.}) 21... h4 $17 {[%emt 0:08:51]} 22. Bc4 {[%emt 0:00:15] [#]} hxg3 {[%emt 0:01:16]} ({Don't go for} 22... Qf6 $2 23. Bxe5 Nxe5 24. Qxf6 $18) (22... Be6 $1 $17 23. Bxe6 (23. Bxe5 Nxe5 24. Nxe5 Bxc4 $17) 23... Qxe6 24. Bxh4 Nxh4 25. Qxh4 f6) 23. Qxg6+ $11 {[%emt 0:00:17] The position is equal.} Kh8 {[%emt 0:00:02]} 24. Qh6+ {[%emt 0:00:07]} Kg8 {[%emt 0:00:05]} 25. Qg6+ {[%emt 0:02:18]} Kh8 {[%emt 0:00:01]} 26. Qh6+ {[%emt 0:00:26]} Kg8 {[%emt 0:00:01]} 27. Qg6+ {[%emt 0:00:53] Weighted Error Value: White=0.15 (very precise) /Black=0.14 (very precise)   Mistake:       	White=1     	Black=2      Inaccurate:     	White=1     	---        OK:         	White=7     	Black=2      Best:        	White=4     	Black=4      Strong:       	---       	Black=1} 1/2-1/2

[Event "FIDE Women GP Cyprus 2025"]
[Site "Nicosia"]
[Date "2025.03.19"]
[Round "5.4"]
[White "Badelka, Olga"]
[Black "Muzychuk, Mariya"]
[Result "1/2-1/2"]
[Annotator "TA"]
[ECO "E60"]
[WhiteElo "2429"]
[BlackElo "2490"]
[PlyCount "108"]
[EventDate "2025.03.10"]
[EventType "tourn"]
[EventCountry "CYP"]
[SourceTitle "playchess.com"]
[Source "ChessBase"]
[SourceQuality "1"]
[TimeControl "40/5400+30:1800+30"]

{[%evp 9,108,27,23,23,31,18,15,-9,-9,-1,0,-6,0,0,0,0,0,3,9,5,12,0,0,0,2,-6,0,0,0,0,0,-135,-108,-114,-73,-59,-64,-81,-34,-31,-33,-32,-36,-37,-29,-42,-25,-25,-25,-25,-25,-25,0,-6,-6,-6,-6,-6,-6,-6,-6,-10,-16,-23,-6,-6,0,0,0,0,0,0,0,0,0,0,0,0,0,0,0,0,0,0,0,0,0,0,0,0,0,0,0,0,0,0,0,0,0,0,0]} 1. d4 {[%emt 0:00:04]} Nf6 {[%emt 0:00:05]} 2. c4 {[%emt 0:00:05]} g6 {[%emt 0:00:03]} 3. h4 {[%emt 0:00:06]} Bg7 {[%emt 0:02:45]} 4. Nc3 {[%emt 0:00:11]} d6 {[%emt 0:01:52]} 5. e4 {[%emt 0:00:14]} Nc6 {[%emt 0:01:14]} 6. Nge2 {[%emt 0:00:44] E60: King's Indian: Unusual lines and Fianchetto Variation without Nc3.} O-O {[%emt 0:00:46]} 7. d5 {[%emt 0:11:43]} Ne5 {[%emt 0:00:18]} 8. Ng3 {[%emt 0:01:34]} h5 {[%emt 0:03:29]} 9. Be2 {[%emt 0:02:52]} c6 {[%emt 0:00:27]} 10. Bf4 {[%emt 0:04:04]} Bd7 {[%emt 0:10:17]} 11. Qd2 {[%emt 0:02:48]} Rc8 $146 {[%emt 0:05:10]} (11... cxd5 12. exd5 Rc8 13. b3 Qa5 14. O-O Nfg4 15. Rac1 f5 16. Rfe1 Rf7 17. f3 Nf6 {1-0 Rawlings,A (2225)-Mikuz,S (1945) W-ch WS/M/212 email 2009}) 12. dxc6 {[%emt 0:05:30]} Rxc6 {[%emt 0:08:17]} 13. b3 {[%emt 0:00:30]} Qa5 {[%emt 0:00:26]} 14. Rc1 {[%emt 0:01:17]} a6 {[%emt 0:01:42]} 15. Nd5 {[%emt 0:11:29]} Qxd2+ {[%emt 0:01:58]} 16. Kxd2 {[%emt 0:00:06]} Nxd5 {[%emt 0:01:24]} 17. exd5 {[%emt 0:00:34]} Rc7 {[%emt 0:11:07]} 18. Ne4 {[%emt 0:02:25]} Rfc8 {[%emt 0:05:53]} 19. a4 {[%emt 0:13:27]} Bf5 {[%emt 0:02:25]} 20. Ng5 {[%emt 0:00:36]} (20. Ng3 $11) 20... Nd7 $17 {[%emt 0:01:25]} 21. Be3 {[%emt 0:06:50]} Nc5 {[%emt 0:01:43] Prevents Bd3.} 22. Bxc5 {[%emt 0:00:05]} Rxc5 {[%emt 0:01:01]} 23. Bd3 {[%emt 0:11:32]} Bxd3 {[%emt 0:02:53]} (23... b5 $17 24. axb5 axb5) 24. Kxd3 $15 {[%emt 0:00:03]} b5 {[%emt 0:00:46]} 25. axb5 {[%emt 0:00:37]} axb5 {[%emt 0:00:04]} 26. Rhe1 {[%emt 0:01:04]} Kf8 {[%emt 0:01:31]} 27. Rc2 {[%emt 0:03:23]} bxc4+ {[%emt 0:13:11]} 28. bxc4 {[%emt 0:00:04]} Ra5 {[%emt 0:00:14]} 29. Re3 {[%emt 0:04:16]} Ra1 {[%emt 0:18:24]} 30. Rf3 {[%emt 0:01:22]} f5 {[%emt 0:01:23]} 31. Ne6+ {[%emt 0:02:43]} Kf7 {[%emt 0:00:03]} 32. Nxg7 {[%emt 0:01:12]} Kxg7 $11 {[%emt 0:00:07][%mdl 4096] Endgame KRR-KRR} 33. Ke2 {[%emt 0:01:30] Prevents Rd1} Rb8 {[%emt 0:01:05]} 34. Re3 {[%emt 0:00:31]} Kf7 {[%emt 0:00:13]} 35. Kf3 {[%emt 0:01:37]} Rd1 {[%emt 0:00:23]} 36. g3 {[%emt 0:00:28]} Rc8 {[%emt 0:01:43]} 37. Rec3 {[%emt 0:05:44] The position is equal.} Rd4 {[%emt 0:01:30]} 38. Ke3 {[%emt 0:00:34]} Rg4 {[%emt 0:00:53][%cal Of5f4]} 39. c5 {[%emt 0:02:11]} dxc5 {[%emt 0:00:45]} 40. Rxc5 {[%emt 0:00:04]} Rd8 {[%emt 0:00:42]} 41. Re2 {[%emt 0:33:26]} Ra8 {[%emt 0:11:40]} 42. Kf3 {[%emt 0:00:00]} Ra3+ {[%emt 0:00:05]} 43. Re3 {[%emt 0:00:00]} Rxe3+ {[%emt 0:00:12]} 44. fxe3 {[%emt 0:00:00] KR-KR} Ra4 {[%emt 0:00:44]} 45. Rc7 {[%emt 0:00:00]} Ra6 {[%emt 0:02:25]} 46. Kf4 {[%emt 0:00:00]} Kf6 {[%emt 0:01:55]} 47. Kf3 {[%emt 0:00:00] [#] White wants to mate with Rc6+.} Ra5 {[%emt 0:01:02]} 48. Rd7 {[%emt 0:00:00]} Rb5 {[%emt 0:00:57]} 49. Rd8 {[%emt 0:00:00]} Rb2 {[%emt 0:01:44]} 50. Rf8+ {[%emt 0:00:00]} Kg7 {[%emt 0:00:17]} 51. Ra8 {[%emt 0:00:00]} Rd2 {[%emt 0:01:35]} 52. Ra5 {[%emt 0:00:00]} Kf7 {[%emt 0:00:27]} 53. Rb5 {[%emt 0:00:00]} Ra2 {[%emt 0:01:11]} 54. Rc5 {[%emt 0:00:00]} Rd2 {[%emt 0:00:35] Weighted Error Value: White=0.07 (flawless) /Black=0.04 (flawless)   Mistake:       	White=1     	Black=1      Inaccurate:     	---       	Black=1      OK:         	White=26    	Black=16     Best:        	White=1     	Black=1} 1/2-1/2

[Event "FIDE Women GP Cyprus 2025"]
[Site "Nicosia"]
[Date "2025.03.19"]
[Round "5.5"]
[White "Paehtz, Elisabeth"]
[Black "Harika, Dronavalli"]
[Result "1-0"]
[Annotator "TA"]
[ECO "C26"]
[WhiteElo "2424"]
[BlackElo "2483"]
[PlyCount "99"]
[EventDate "2025.03.10"]
[EventType "tourn"]
[EventCountry "CYP"]
[SourceTitle "playchess.com"]
[Source "ChessBase"]
[SourceQuality "1"]
[TimeControl "40/5400+30:1800+30"]

{[%evp 9,99,-25,-28,-18,106,111,108,107,131,102,149,138,133,130,153,161,148,145,156,146,160,158,158,151,233,233,237,189,242,237,238,252,266,243,258,253,268,277,321,329,324,314,366,352,346,350,350,265,388,381,389,359,433,419,443,414,425,429,441,433,445,448,617,597,842,923,931,912,1044,1009,1082,1049,1118,1120,1467,1458,1525,1527,2214,2168,5910,5968,29982,29983,29982,29983,29966,2461,29986,29987,29998,29999]} 1. e4 {[%emt 0:00:02]} e5 {[%emt 0:00:07]} 2. Nc3 {[%emt 0:00:04]} Nf6 {[%emt 0:00:07]} 3. d4 exd4 {[%emt 0:00:24]} 4. Qxd4 {[%emt 0:00:29]} Nc6 {[%emt 0:00:37]} 5. Qd3 {[%emt 0:06:43]} Bc5 {[%emt 0:00:10]} 6. Bf4 {[%emt 0:03:13] [#] C26: Vienna Game: 2...Nf6, sidelines .} d5 $146 {[%emt 0:12:05]} (6... d6 7. O-O-O Be6 8. Nd5 O-O 9. Bg5 Bxd5 10. exd5 Ne5 11. Qb3 h6 12. Bh4 Ng6 {½-½ Indjic,A (2595)-Sargissian,G (2671) Chessable Masters Div 3 Win rapid 2024 (1.1)}) 7. exd5 $16 Qe7+ {[%emt 0:05:21]} 8. Qe2 {[%emt 0:02:51] White is better.} Qxe2+ {[%emt 0:03:51]} 9. Bxe2 Nb4 {[%emt 0:03:34]} (9... Ne7 $142) 10. O-O-O (10. Bxc7 $2 {perishes.} Nxc2+ (10... Nbxd5 11. Nxd5 Nxd5 12. Be5 $16) 11. Kd2 Nxa1 $19) 10... c6 {[%emt 0:00:05]} 11. dxc6 {[%emt 0:10:52]} bxc6 {[%emt 0:07:00][%cal Oc8f5]} 12. Nf3 {[%cal Bg1f3,Bf3e5,Be5c6][%mdl 32]} Bxf2 {[%emt 0:10:45]} 13. Bc4 {Dodges Nfd5} Be6 {[%emt 0:12:41]} 14. Bxe6 {[%emt 0:05:03]} fxe6 {[%emt 0:05:30]} 15. Rhf1 {[%emt 0:00:26]} Bb6 {[%emt 0:00:00]} 16. Rfe1 Kf7 {[%emt 0:00:00]} (16... Rd8 $16 {keeps fighting.} 17. Bd2 (17. Rxe6+ Kf7 $18) 17... O-O) 17. Ne5+ $18 Kg8 {[%emt 0:00:00]} 18. Bg5 Re8 {[%emt 0:15:42]} (18... Nbd5 $142 19. Na4 (19. Nxc6 Nxc3 20. bxc3 Bc5 $18) 19... Bc7) 19. Ne4 {[%emt 0:29:51]} Nxe4 {[%emt 0:00:00]} 20. Rxe4 {[%emt 0:00:10]} Nd5 {[%emt 0:00:00]} 21. Nxc6 {[%emt 0:01:01] [#] Rxd5 would now be deadly.} h6 {[%emt 0:00:00]} 22. Bd2 {[%emt 0:12:37] Dodges Nc3} Kh7 {[%emt 0:00:00]} 23. Rde1 {[%emt 0:00:34]} Rhf8 {[%emt 0:00:00]} 24. c4 {[%emt 0:01:04]} (24. Rxe6 Rxe6 25. Rxe6 Rf2 $11) 24... Nc7 {[%emt 0:00:00]} 25. b4 {[%emt 0:01:05]} Bf2 {[%emt 0:00:00]} 26. R1e2 {[%emt 0:00:57]} Rc8 {[%emt 0:00:00]} 27. Rf4 {[%emt 0:01:40]} Bg1 {[%emt 0:00:00]} 28. g3 {[%emt 0:02:14]} g5 {[%emt 0:00:00]} (28... Rxf4 $142 29. Bxf4 Na6) 29. Rxf8 {[%emt 0:02:30]} Rxf8 {[%emt 0:00:00]} 30. Bc3 {[%emt 0:00:54]} Rc8 {[%emt 0:00:00]} 31. Kb2 {[%emt 0:02:36]} h5 {[%emt 0:00:00]} 32. Rd2 {[%emt 0:00:56]} Kh6 {[%emt 0:00:00]} 33. Rg2 {[%emt 0:02:32]} Be3 {[%emt 0:00:00]} 34. Re2 {[%emt 0:00:03]} Bg1 {[%emt 0:00:00]} 35. Bd2 {[%emt 0:00:22]} Re8 {[%emt 0:00:00]} 36. Rg2 {[%emt 0:00:26]} Rf8 {[%emt 0:00:00]} 37. Rxg1 {[%emt 0:00:16]} Rf2 {[%emt 0:00:00]} 38. Kc3 {[%emt 0:00:31]} Rxh2 {[%emt 0:00:00]} 39. Nxa7 {[%emt 0:00:29]} Kg6 {[%emt 0:00:52]} 40. b5 {[%emt 0:00:30][%cal Bb4b5,Bb5b6,Bb6b7][%mdl 32]} e5 {[%emt 0:00:06][%cal Be6e5,Be5e4][%mdl 32]} 41. Nc6 {[%emt 0:30:54]} e4 {[%emt 0:30:06]} 42. b6 {[%emt 0:00:36]} Na6 {[%emt 0:00:01]} 43. b7 {[%emt 0:00:39]} Kf5 {[%emt 0:00:51]} 44. Rb1 Rg2 {[%emt 0:01:46]} 45. Rb5+ {[%emt 0:00:35]} Kg4 {[%emt 0:00:00]} 46. Rxg5+ {[%emt 0:00:47]} Kf3 {[%emt 0:04:03]} 47. Rf5+ {[%emt 0:00:16]} Kxg3 {[%emt 0:00:00]} 48. Rxh5 {[%emt 0:04:05]} (48. Ra5 $142 e3 49. Bxe3 (49. Rxa6 exd2 50. b8=Q+ Kf2 $18) (49. b8=Q+ Nxb8 50. Be1+ Kg4 $18) 49... Re2 50. Bd4 (50. Rxa6 Rxe3+ 51. Kb4 Re8 $18) 50... Nb8 51. Nxb8 Kh3 52. Nd7 (52. Rxh5+ Kg2 $18) 52... h4 53. b8=Q (53. b8=B Re1 $18)) 48... Kf3 {[%emt 0:00:19]} 49. Rf5+ {[%emt 0:00:19]} Ke2 {[%emt 0:00:00]} 50. Nd4+ {[%emt 0:00:00] Black did not feel at home in the position after the opening.   Weighted Error Value: White=0.05 (flawless) /Black=0.66  Mistake:       	---       	Black=5      Inaccurate:     	---       	Black=2      OK:         	White=20    	Black=10     Best:        	White=2     	---} 1-0